[Event "December 19 Early 2023"]
[Site "https://www.chess.com"]
[Date "2023.12.19"]
[Round "2"]
[White "Vargas, Mauricio"]
[Black "Balint, Vilmos"]
[Result "0-1"]
[Board "256"]
[TimeControl "180+1"]
[WhiteFideId "4404572"]
[BlackFideId "718050"]
[WhiteElo "1982"]
[BlackElo "2139"]
[WhiteTeam "COL"]
[BlackTeam "HUN"]
[WhiteClock "0:00:00"]
[BlackClock "0:01:50"]

1. e4 {[%clk 0:02:59]}  e6 {[%clk 0:02:59]} 2. f4 {[%clk 0:02:58]}  d5 {[%clk 0:02:59]} 3. e5 {[%clk 0:02:58]}  c5 {[%clk 0:02:59]} 4. Nf3 {[%clk 0:02:58]}  Nc6 {[%clk 0:02:59]} 5. Bb5 {[%clk 0:02:59]}  Bd7 {[%clk 0:02:59]} 6. Bxc6 {[%clk 0:02:59]}  bxc6 {[%clk 0:02:56]} 7. O-O {[%clk 0:03:00]}  Ne7 {[%clk 0:02:56]} 8. d3 {[%clk 0:03:00]}  h5 {[%clk 0:02:55]} 9. c4 {[%clk 0:02:59]}  Nf5 {[%clk 0:02:55]} 10. b3 {[%clk 0:02:58]}  a5 {[%clk 0:02:55]} 11. Nc3 {[%clk 0:02:57]}  Be7 {[%clk 0:02:53]} 12. Na4 {[%clk 0:02:57]}  Qc7 {[%clk 0:02:52]} 13. Qe1 {[%clk 0:02:55]}  h4 {[%clk 0:02:52]} 14. h3 {[%clk 0:02:53]}  Ng3 {[%clk 0:02:51]} 15. Rf2 {[%clk 0:02:53]}  Rh6 {[%clk 0:02:50]} 16. Ba3 {[%clk 0:02:50]}  Qa7 {[%clk 0:02:42]} 17. Qe3 {[%clk 0:02:39]}  Nf5 {[%clk 0:02:41]} 18. Qe1 {[%clk 0:02:30]}  Bc8 {[%clk 0:02:41]} 19. Nh2 {[%clk 0:02:21]}  Rg6 {[%clk 0:02:40]} 20. Ng4 {[%clk 0:02:17]}  Nd4 {[%clk 0:02:38]} 21. Rc1 {[%clk 0:02:03]}  Rb8 {[%clk 0:02:38]} 22. Bb2 {[%clk 0:01:55]}  Nf5 {[%clk 0:02:36]} 23. Bc3 {[%clk 0:01:52]}  Ra8 {[%clk 0:02:32]} 24. Bb2 {[%clk 0:01:50]}  Kf8 {[%clk 0:02:18]} 25. Rd2 {[%clk 0:01:34]}  Qa6 {[%clk 0:02:18]} 26. Ba3 {[%clk 0:01:31]}  Qa7 {[%clk 0:02:16]} 27. Qf2 {[%clk 0:01:29]}  Nd4 {[%clk 0:02:11]} 28. Nh2 {[%clk 0:01:18]}  Rb8 {[%clk 0:02:09]} 29. Nf3 {[%clk 0:01:17]}  Nxf3+ {[%clk 0:02:06]} 30. Qxf3 {[%clk 0:01:14]}  Rb4 {[%clk 0:02:05]} 31. Bxb4 {[%clk 0:01:05]}  cxb4+ {[%clk 0:02:05]} 32. Qf2 {[%clk 0:00:54]}  d4 {[%clk 0:02:02]} 33. Qf3 {[%clk 0:00:35]}  c5 {[%clk 0:01:58]} 34. Qc6 {[%clk 0:00:13]}  Bd7 {[%clk 0:01:57]} 35. Qb6 {[%clk 0:00:11]}  Qa8 {[%clk 0:01:54]} 36. Nxc5 {[%clk 0:00:07]}  Bc6 {[%clk 0:01:54]} 37. Rcc2 {[%clk 0:00:06]}  Rg3 {[%clk 0:01:50]} 38. Qc7 {[%clk 0:00:00]}  Bxc5 {[%clk 0:01:50]} 0-1

[Event "December 19 Early 2023"]
[Site "https://www.chess.com"]
[Date "2023.12.19"]
[Round "3"]
[White "Carlsen, Magnus"]
[Black "IM_ArthurDW08"]
[Result "1-0"]
[Board "1"]
[TimeControl "180+1"]
[WhiteFideId "1503014"]
[WhiteElo "2887"]
[BlackElo "2762"]
[WhiteTeam "NOR"]
[WhiteClock "0:01:36"]
[BlackClock "0:00:00"]

1. h3 {[%clk 0:03:00]}  e5 {[%clk 0:02:56]} 2. Nf3 {[%clk 0:03:00]}  e4 {[%clk 0:02:53]} 3. Nh2 {[%clk 0:03:01]}  d5 {[%clk 0:02:52]} 4. d3 {[%clk 0:03:01]}  Nf6 {[%clk 0:02:52]} 5. g4 {[%clk 0:03:00]}  h6 {[%clk 0:02:43]} 6. Bg2 {[%clk 0:03:00]}  Bd6 {[%clk 0:02:44]} 7. Nc3 {[%clk 0:02:59]}  Bxh2 {[%clk 0:02:32]} 8. Rxh2 {[%clk 0:03:00]}  Qd6 {[%clk 0:02:33]} 9. Rh1 {[%clk 0:03:00]}  exd3 {[%clk 0:02:31]} 10. Qxd3 {[%clk 0:03:00]}  Be6 {[%clk 0:02:26]} 11. e4 {[%clk 0:02:57]}  Nc6 {[%clk 0:01:57]} 12. Nb5 {[%clk 0:02:53]}  Qe7 {[%clk 0:01:33]} 13. Bf4 {[%clk 0:02:49]}  dxe4 {[%clk 0:01:24]} 14. Qa3 {[%clk 0:02:26]}  Nd5 {[%clk 0:01:17]} 15. Nxc7+ {[%clk 0:02:25]}  Nxc7 {[%clk 0:01:15]} 16. Qxe7+ {[%clk 0:02:24]}  Nxe7 {[%clk 0:01:15]} 17. Bxc7 {[%clk 0:02:24]}  Rc8 {[%clk 0:01:15]} 18. Be5 {[%clk 0:02:23]}  f6 {[%clk 0:01:15]} 19. Bd4 {[%clk 0:02:23]}  Rxc2 {[%clk 0:01:12]} 20. Bxe4 {[%clk 0:02:10]}  Rc4 {[%clk 0:01:09]} 21. Rd1 {[%clk 0:02:10]}  Nc6 {[%clk 0:01:07]} 22. Bg6+ {[%clk 0:02:07]}  Bf7 {[%clk 0:01:01]} 23. Bxf7+ {[%clk 0:02:08]}  Kxf7 {[%clk 0:01:02]} 24. Bc3 {[%clk 0:02:09]}  Rd8 {[%clk 0:00:57]} 25. Ke2 {[%clk 0:02:06]}  Re8+ {[%clk 0:00:33]} 26. Kf3 {[%clk 0:02:05]}  Re7 {[%clk 0:00:34]} 27. a3 {[%clk 0:01:58]}  b5 {[%clk 0:00:33]} 28. Rd5 {[%clk 0:01:57]}  a6 {[%clk 0:00:30]} 29. Rhd1 {[%clk 0:01:56]}  b4 {[%clk 0:00:16]} 30. axb4 {[%clk 0:01:56]}  Nxb4 {[%clk 0:00:17]} 31. Ra5 {[%clk 0:01:53]}  Re6 {[%clk 0:00:12]} 32. Rd7+ {[%clk 0:01:50]}  Kg6 {[%clk 0:00:11]} 33. Rb7 {[%clk 0:01:40]}  Nc6 {[%clk 0:00:11]} 34. Rd5 {[%clk 0:01:39]}  Ne5+ {[%clk 0:00:08]} 35. Bxe5 {[%clk 0:01:35]}  fxe5 {[%clk 0:00:07]} 36. Rdd7 {[%clk 0:01:35]}  Rf6+ {[%clk 0:00:00]} 37. Kg3 {[%clk 0:01:36]} 1-0

[Event "December 19 Early 2023"]
[Site "https://www.chess.com"]
[Date "2023.12.19"]
[Round "3"]
[White "Gabrielian, Artur"]
[Black "Nakamura, Hikaru"]
[Result "0-1"]
[Board "2"]
[TimeControl "180+1"]
[WhiteFideId "4131002"]
[BlackFideId "2016192"]
[WhiteElo "2441"]
[BlackElo "2874"]
[WhiteTeam "RUS"]
[BlackTeam "USA"]
[WhiteClock "0:00:00"]
[BlackClock "0:01:13"]

1. e4 {[%clk 0:03:00]}  e6 {[%clk 0:02:56]} 2. d4 {[%clk 0:03:00]}  d5 {[%clk 0:02:57]} 3. Nc3 {[%clk 0:03:01]}  Bb4 {[%clk 0:02:57]} 4. e5 {[%clk 0:03:01]}  b6 {[%clk 0:02:57]} 5. a3 {[%clk 0:02:52]}  Bf8 {[%clk 0:02:55]} 6. Qg4 {[%clk 0:02:40]}  Ba6 {[%clk 0:02:54]} 7. Bxa6 {[%clk 0:02:38]}  Nxa6 {[%clk 0:02:55]} 8. Nge2 {[%clk 0:02:39]}  c5 {[%clk 0:02:55]} 9. Be3 {[%clk 0:02:35]}  h5 {[%clk 0:02:53]} 10. Qh3 {[%clk 0:02:26]}  Ne7 {[%clk 0:02:52]} 11. g4 {[%clk 0:02:19]}  Rc8 {[%clk 0:02:31]} 12. Rg1 {[%clk 0:02:14]}  Qd7 {[%clk 0:02:28]} 13. O-O-O {[%clk 0:02:07]}  b5 {[%clk 0:02:11]} 14. dxc5 {[%clk 0:02:05]}  Ng6 {[%clk 0:02:10]} 15. b4 {[%clk 0:01:43]}  hxg4 {[%clk 0:02:08]} 16. Qxg4 {[%clk 0:01:43]}  Nxe5 {[%clk 0:02:07]} 17. Qf4 {[%clk 0:01:31]}  Nc4 {[%clk 0:02:07]} 18. Bd4 {[%clk 0:01:25]}  f6 {[%clk 0:02:06]} 19. Qg4 {[%clk 0:01:15]}  Nc7 {[%clk 0:02:01]} 20. Nf4 {[%clk 0:01:12]}  e5 {[%clk 0:02:00]} 21. Qxd7+ {[%clk 0:00:45]}  Kxd7 {[%clk 0:02:01]} 22. Ng6 {[%clk 0:00:43]}  Rh7 {[%clk 0:01:55]} 23. Be3 {[%clk 0:00:32]}  Kc6 {[%clk 0:01:49]} 24. Nb1 {[%clk 0:00:11]}  a5 {[%clk 0:01:46]} 25. c3 {[%clk 0:00:10]}  axb4 {[%clk 0:01:44]} 26. axb4 {[%clk 0:00:11]}  Ra8 {[%clk 0:01:42]} 27. h4 {[%clk 0:00:06]}  Ne6 {[%clk 0:01:35]} 28. Rg3 {[%clk 0:00:06]}  Ra7 {[%clk 0:01:33]} 29. f4 {[%clk 0:00:06]}  Be7 {[%clk 0:01:29]} 30. fxe5 {[%clk 0:00:05]}  fxe5 {[%clk 0:01:29]} 31. Bg5 {[%clk 0:00:06]}  Bxg5+ {[%clk 0:01:24]} 32. hxg5 {[%clk 0:00:05]}  Rh2 {[%clk 0:01:24]} 33. Rgd3 {[%clk 0:00:05]}  Raa2 {[%clk 0:01:20]} 34. Nd2 {[%clk 0:00:05]}  Ra1+ {[%clk 0:01:14]} 35. Kc2 {[%clk 0:00:05]}  Rxd1 {[%clk 0:01:13]} 36. Ne7+ {[%clk 0:00:03]}  Kd7 {[%clk 0:01:13]} 37. Nxd5 {[%clk 0:00:00]}  Rdxd2+ {[%clk 0:01:13]} 0-1

[Event "December 19 Early 2023"]
[Site "https://www.chess.com"]
[Date "2023.12.19"]
[Round "3"]
[White "Vachier-Lagrave, Maxime"]
[Black "Chan, Yi Ren Daniel"]
[Result "1-0"]
[Board "3"]
[TimeControl "180+1"]
[WhiteFideId "623539"]
[BlackFideId "5801583"]
[WhiteElo "2748"]
[BlackElo "2375"]
[WhiteTeam "FRA"]
[BlackTeam "SGP"]
[WhiteClock "0:00:11"]
[BlackClock "0:00:03"]

1. c4 {[%clk 0:03:00]}  c6 {[%clk 0:02:58]} 2. Nf3 {[%clk 0:02:56]}  Nf6 {[%clk 0:02:57]} 3. Nc3 {[%clk 0:02:55]}  d5 {[%clk 0:02:57]} 4. d4 {[%clk 0:02:54]}  e6 {[%clk 0:02:55]} 5. e3 {[%clk 0:02:52]}  Nbd7 {[%clk 0:02:54]} 6. Qc2 {[%clk 0:02:51]}  Bd6 {[%clk 0:02:52]} 7. Bd2 {[%clk 0:02:41]}  O-O {[%clk 0:02:50]} 8. Rc1 {[%clk 0:02:32]}  Qe7 {[%clk 0:02:24]} 9. Bd3 {[%clk 0:02:16]}  h6 {[%clk 0:02:10]} 10. O-O {[%clk 0:02:10]}  e5 {[%clk 0:02:04]} 11. cxd5 {[%clk 0:02:08]}  cxd5 {[%clk 0:02:04]} 12. dxe5 {[%clk 0:01:52]}  Nxe5 {[%clk 0:02:04]} 13. Nd4 {[%clk 0:01:50]}  Nxd3 {[%clk 0:01:31]} 14. Qxd3 {[%clk 0:01:51]}  a6 {[%clk 0:01:29]} 15. Nce2 {[%clk 0:01:44]}  Ne4 {[%clk 0:01:19]} 16. Ng3 {[%clk 0:01:42]}  Bd7 {[%clk 0:01:08]} 17. Rfd1 {[%clk 0:01:34]}  Rac8 {[%clk 0:01:06]} 18. Be1 {[%clk 0:01:33]}  Bxg3 {[%clk 0:01:04]} 19. hxg3 {[%clk 0:01:31]}  Rxc1 {[%clk 0:01:04]} 20. Rxc1 {[%clk 0:01:32]}  Rc8 {[%clk 0:01:04]} 21. Rxc8+ {[%clk 0:01:32]}  Bxc8 {[%clk 0:01:05]} 22. f3 {[%clk 0:01:30]}  Nf6 {[%clk 0:01:01]} 23. g4 {[%clk 0:01:27]}  Bd7 {[%clk 0:00:54]} 24. Bc3 {[%clk 0:01:23]}  Qd6 {[%clk 0:00:49]} 25. Nc2 {[%clk 0:01:18]}  Bb5 {[%clk 0:00:41]} 26. Qd4 {[%clk 0:01:17]}  Bc6 {[%clk 0:00:31]} 27. a4 {[%clk 0:01:08]}  Ne8 {[%clk 0:00:25]} 28. b3 {[%clk 0:01:04]}  f6 {[%clk 0:00:24]} 29. Ba5 {[%clk 0:01:00]}  Qe6 {[%clk 0:00:21]} 30. Nb4 {[%clk 0:00:57]}  Nd6 {[%clk 0:00:20]} 31. Bc7 {[%clk 0:00:56]}  Ne8 {[%clk 0:00:18]} 32. Bg3 {[%clk 0:00:54]}  Qe7 {[%clk 0:00:18]} 33. Kh2 {[%clk 0:00:49]}  Qe6 {[%clk 0:00:10]} 34. Nd3 {[%clk 0:00:48]}  Nd6 {[%clk 0:00:10]} 35. Nf4 {[%clk 0:00:40]}  Qd7 {[%clk 0:00:04]} 36. Nxd5 {[%clk 0:00:38]}  Nf7 {[%clk 0:00:05]} 37. e4 {[%clk 0:00:25]}  h5 {[%clk 0:00:04]} 38. gxh5 {[%clk 0:00:24]}  Ng5 {[%clk 0:00:05]} 39. Qc4 {[%clk 0:00:17]}  Ne6 {[%clk 0:00:05]} 40. h6 {[%clk 0:00:14]}  Qf7 {[%clk 0:00:04]} 41. hxg7 {[%clk 0:00:13]}  Kxg7 {[%clk 0:00:04]} 42. Ne3 {[%clk 0:00:12]}  Qh5+ {[%clk 0:00:04]} 43. Kg1 {[%clk 0:00:12]}  Ng5 {[%clk 0:00:05]} 44. Nf5+ {[%clk 0:00:12]}  Kf8 {[%clk 0:00:04]} 45. Bd6+ {[%clk 0:00:12]}  Ke8 {[%clk 0:00:03]} 46. Qg8+ {[%clk 0:00:13]}  Kd7 {[%clk 0:00:03]} 47. Qg7+ {[%clk 0:00:10]}  Qf7 {[%clk 0:00:04]} 48. Qxf7+ {[%clk 0:00:10]}  Nxf7 {[%clk 0:00:05]} 49. Be7 {[%clk 0:00:09]}  Ke6 {[%clk 0:00:05]} 50. Ba3 {[%clk 0:00:09]}  Ne5 {[%clk 0:00:05]} 51. Nd4+ {[%clk 0:00:09]}  Kf7 {[%clk 0:00:06]} 52. Nxc6 {[%clk 0:00:09]}  Nxc6 {[%clk 0:00:07]} 53. Bc5 {[%clk 0:00:09]}  Na5 {[%clk 0:00:07]} 54. b4 {[%clk 0:00:09]}  Nc4 {[%clk 0:00:08]} 55. a5 {[%clk 0:00:09]}  Ke6 {[%clk 0:00:08]} 56. Kf2 {[%clk 0:00:09]}  Kd7 {[%clk 0:00:08]} 57. g4 {[%clk 0:00:09]}  Kc6 {[%clk 0:00:08]} 58. Be7 {[%clk 0:00:09]}  Nb2 {[%clk 0:00:07]} 59. Ke2 {[%clk 0:00:09]}  Na4 {[%clk 0:00:05]} 60. Bxf6 {[%clk 0:00:09]}  Kb5 {[%clk 0:00:05]} 61. g5 {[%clk 0:00:10]}  Kxb4 {[%clk 0:00:05]} 62. g6 {[%clk 0:00:10]}  Kxa5 {[%clk 0:00:04]} 63. g7 {[%clk 0:00:11]}  Nc5 {[%clk 0:00:03]} 64. g8=Q {[%clk 0:00:11]} 1-0

[Event "December 19 Early 2023"]
[Site "https://www.chess.com"]
[Date "2023.12.19"]
[Round "3"]
[White "Kozak, Antoni"]
[Black "Nihal Sarin"]
[Result "1-0"]
[Board "4"]
[TimeControl "180+1"]
[WhiteFideId "21832030"]
[BlackFideId "25092340"]
[WhiteElo "2470"]
[BlackElo "2689"]
[WhiteTeam "POL"]
[BlackTeam "IND"]
[WhiteClock "0:00:14"]
[BlackClock "0:00:18"]

1. d4 {[%clk 0:03:00]}  a6 {[%clk 0:03:00]} 2. Nf3 {[%clk 0:02:56]}  b5 {[%clk 0:03:01]} 3. Bg5 {[%clk 0:02:56]}  Bb7 {[%clk 0:03:01]} 4. e3 {[%clk 0:02:56]}  Nf6 {[%clk 0:03:02]} 5. Bd3 {[%clk 0:02:55]}  e6 {[%clk 0:03:02]} 6. Nbd2 {[%clk 0:02:55]}  h6 {[%clk 0:03:02]} 7. Bh4 {[%clk 0:02:55]}  c5 {[%clk 0:03:03]} 8. c3 {[%clk 0:02:55]}  d5 {[%clk 0:03:03]} 9. Ne5 {[%clk 0:02:53]}  Nbd7 {[%clk 0:03:04]} 10. f4 {[%clk 0:02:53]}  Be7 {[%clk 0:03:04]} 11. O-O {[%clk 0:02:52]}  O-O {[%clk 0:03:05]} 12. Qf3 {[%clk 0:02:49]}  cxd4 {[%clk 0:03:05]} 13. exd4 {[%clk 0:02:49]}  b4 {[%clk 0:03:05]} 14. f5 {[%clk 0:02:31]}  bxc3 {[%clk 0:03:05]} 15. bxc3 {[%clk 0:02:32]}  Rc8 {[%clk 0:02:28]} 16. fxe6 {[%clk 0:02:24]}  fxe6 {[%clk 0:02:29]} 17. Qh3 {[%clk 0:02:17]}  Nxe5 {[%clk 0:01:35]} 18. dxe5 {[%clk 0:02:13]}  Qb6+ {[%clk 0:01:35]} 19. Bf2 {[%clk 0:01:17]}  Bc5 {[%clk 0:01:33]} 20. Rab1 {[%clk 0:01:11]}  Qc6 {[%clk 0:01:22]} 21. exf6 {[%clk 0:01:01]}  Rxf6 {[%clk 0:01:23]} 22. Bd4 {[%clk 0:00:57]}  Rcf8 {[%clk 0:01:04]} 23. Qe3 {[%clk 0:00:47]}  Bxd4 {[%clk 0:00:44]} 24. cxd4 {[%clk 0:00:47]}  Qd7 {[%clk 0:00:44]} 25. Rxf6 {[%clk 0:00:46]}  Rxf6 {[%clk 0:00:45]} 26. Nf3 {[%clk 0:00:43]}  Qc7 {[%clk 0:00:45]} 27. Qe5 {[%clk 0:00:35]}  Qc8 {[%clk 0:00:42]} 28. Qd6 {[%clk 0:00:31]}  Qc3 {[%clk 0:00:34]} 29. Qb8+ {[%clk 0:00:16]}  Rf8 {[%clk 0:00:34]} 30. Bh7+ {[%clk 0:00:11]}  Kxh7 {[%clk 0:00:34]} 31. Qxf8 {[%clk 0:00:11]}  Qe3+ {[%clk 0:00:32]} 32. Kh1 {[%clk 0:00:12]}  Qd3 {[%clk 0:00:33]} 33. Rg1 {[%clk 0:00:12]}  Qe4 {[%clk 0:00:29]} 34. Qf7 {[%clk 0:00:12]}  Bc6 {[%clk 0:00:25]} 35. Ne5 {[%clk 0:00:12]}  Bb5 {[%clk 0:00:26]} 36. Qxe6 {[%clk 0:00:12]}  Bc4 {[%clk 0:00:21]} 37. Qg4 {[%clk 0:00:11]}  Qxg4 {[%clk 0:00:14]} 38. Nxg4 {[%clk 0:00:11]}  Bxa2 {[%clk 0:00:15]} 39. Ne5 {[%clk 0:00:11]}  Bb3 {[%clk 0:00:15]} 40. Ra1 {[%clk 0:00:10]}  h5 {[%clk 0:00:14]} 41. Rxa6 {[%clk 0:00:10]}  Bc2 {[%clk 0:00:15]} 42. Rd6 {[%clk 0:00:10]}  Be4 {[%clk 0:00:16]} 43. Kg1 {[%clk 0:00:11]}  g6 {[%clk 0:00:16]} 44. g3 {[%clk 0:00:12]}  Kg7 {[%clk 0:00:17]} 45. h4 {[%clk 0:00:12]}  Kh6 {[%clk 0:00:16]} 46. Kf2 {[%clk 0:00:12]}  Kg7 {[%clk 0:00:17]} 47. Ke3 {[%clk 0:00:13]}  Kh6 {[%clk 0:00:18]} 48. Kf4 {[%clk 0:00:13]}  Kg7 {[%clk 0:00:18]} 49. Kg5 {[%clk 0:00:14]} 1-0

[Event "December 19 Early 2023"]
[Site "https://www.chess.com"]
[Date "2023.12.19"]
[Round "3"]
[White "Niemann, Hans Moke"]
[Black "Starozhilov, Leonid"]
[Result "1-0"]
[Board "6"]
[TimeControl "180+1"]
[WhiteFideId "2093596"]
[BlackFideId "14106752"]
[WhiteElo "2614"]
[BlackElo "2246"]
[WhiteTeam "USA"]
[BlackTeam "UKR"]
[WhiteClock "0:02:39"]
[BlackClock "0:01:58"]

1. e4 {[%clk 0:03:00]}  c5 {[%clk 0:02:59]} 2. Nf3 {[%clk 0:03:00]}  e6 {[%clk 0:02:59]} 3. b3 {[%clk 0:03:00]}  Nc6 {[%clk 0:02:59]} 4. Bb2 {[%clk 0:03:00]}  d6 {[%clk 0:02:58]} 5. d4 {[%clk 0:02:56]}  cxd4 {[%clk 0:02:58]} 6. Nxd4 {[%clk 0:02:57]}  Nxd4 {[%clk 0:02:54]} 7. Qxd4 {[%clk 0:02:56]}  Nf6 {[%clk 0:02:50]} 8. Nc3 {[%clk 0:02:56]}  Be7 {[%clk 0:02:45]} 9. O-O-O {[%clk 0:02:56]}  O-O {[%clk 0:02:40]} 10. Be2 {[%clk 0:02:55]}  a6 {[%clk 0:02:39]} 11. a4 {[%clk 0:02:46]}  Qc7 {[%clk 0:02:38]} 12. Kb1 {[%clk 0:02:45]}  Bd7 {[%clk 0:02:30]} 13. g4 {[%clk 0:02:44]}  Bc6 {[%clk 0:02:08]} 14. g5 {[%clk 0:02:41]}  Nd7 {[%clk 0:01:58]} 15. Nd5 {[%clk 0:02:39]} 1-0

[Event "December 19 Early 2023"]
[Site "https://www.chess.com"]
[Date "2023.12.19"]
[Round "3"]
[White "Pranav, V"]
[Black "Liyanage, Ranindu Dilshan"]
[Result "1-0"]
[Board "9"]
[TimeControl "180+1"]
[WhiteFideId "25060783"]
[BlackFideId "9915834"]
[WhiteElo "2562"]
[BlackElo "2198"]
[WhiteTeam "IND"]
[BlackTeam "SRI"]
[WhiteClock "0:01:15"]
[BlackClock "0:00:06"]

1. e4 {[%clk 0:03:00]}  c5 {[%clk 0:02:55]} 2. Nf3 {[%clk 0:03:00]}  Nc6 {[%clk 0:02:55]} 3. Bb5 {[%clk 0:03:00]}  g6 {[%clk 0:02:55]} 4. O-O {[%clk 0:03:00]}  Bg7 {[%clk 0:02:55]} 5. c3 {[%clk 0:03:01]}  Nf6 {[%clk 0:02:54]} 6. Re1 {[%clk 0:03:01]}  O-O {[%clk 0:02:54]} 7. d4 {[%clk 0:03:01]}  cxd4 {[%clk 0:02:53]} 8. cxd4 {[%clk 0:03:02]}  d5 {[%clk 0:02:53]} 9. e5 {[%clk 0:03:02]}  Ne4 {[%clk 0:02:54]} 10. Nc3 {[%clk 0:03:03]}  Bf5 {[%clk 0:02:16]} 11. Bd3 {[%clk 0:02:58]}  Nxc3 {[%clk 0:01:55]} 12. bxc3 {[%clk 0:02:59]}  Bxd3 {[%clk 0:01:56]} 13. Qxd3 {[%clk 0:03:00]}  Rc8 {[%clk 0:01:56]} 14. h4 {[%clk 0:03:00]}  Qc7 {[%clk 0:01:50]} 15. h5 {[%clk 0:02:59]}  Na5 {[%clk 0:01:50]} 16. h6 {[%clk 0:02:57]}  Bh8 {[%clk 0:01:50]} 17. Bd2 {[%clk 0:02:57]}  Nc4 {[%clk 0:01:46]} 18. Bf4 {[%clk 0:02:47]}  e6 {[%clk 0:01:27]} 19. Bg5 {[%clk 0:02:31]}  a6 {[%clk 0:01:13]} 20. a4 {[%clk 0:02:30]}  Nb2 {[%clk 0:01:10]} 21. Qb1 {[%clk 0:02:25]}  Qxc3 {[%clk 0:01:07]} 22. Rc1 {[%clk 0:02:14]}  Qb3 {[%clk 0:00:50]} 23. Nd2 {[%clk 0:02:03]}  Qb6 {[%clk 0:00:45]} 24. Be7 {[%clk 0:01:51]}  Qxd4 {[%clk 0:00:23]} 25. Nf3 {[%clk 0:01:46]}  Qb6 {[%clk 0:00:18]} 26. a5 {[%clk 0:01:26]}  Qb5 {[%clk 0:00:18]} 27. Nd4 {[%clk 0:01:20]}  Rxc1+ {[%clk 0:00:08]} 28. Qxc1 {[%clk 0:01:21]}  Nd3 {[%clk 0:00:09]} 29. Nxb5 {[%clk 0:01:15]}  Nxc1 {[%clk 0:00:09]} 30. Rxc1 {[%clk 0:01:16]}  Re8 {[%clk 0:00:06]} 31. Nd6 {[%clk 0:01:15]} 1-0

[Event "December 19 Early 2023"]
[Site "https://www.chess.com"]
[Date "2023.12.19"]
[Round "3"]
[White "Suleymanli, Aydin"]
[Black "Maatman, Nick"]
[Result "1-0"]
[Board "11"]
[TimeControl "180+1"]
[WhiteFideId "13413937"]
[BlackFideId "1040391"]
[WhiteElo "2553"]
[BlackElo "2709"]
[WhiteTeam "AZE"]
[BlackTeam "NED"]
[WhiteClock "0:00:02"]
[BlackClock "0:00:00"]

1. e4 {[%clk 0:02:59]}  c5 {[%clk 0:03:00]} 2. Nf3 {[%clk 0:02:59]}  d6 {[%clk 0:03:00]} 3. Bb5+ {[%clk 0:02:58]}  Bd7 {[%clk 0:03:00]} 4. a4 {[%clk 0:02:54]}  Nf6 {[%clk 0:03:00]} 5. Nc3 {[%clk 0:02:54]}  Nc6 {[%clk 0:02:57]} 6. O-O {[%clk 0:02:52]}  e6 {[%clk 0:02:58]} 7. d4 {[%clk 0:02:50]}  cxd4 {[%clk 0:02:55]} 8. Nxd4 {[%clk 0:02:50]}  Be7 {[%clk 0:02:54]} 9. Re1 {[%clk 0:02:50]}  O-O {[%clk 0:02:55]} 10. Be3 {[%clk 0:02:46]}  Rc8 {[%clk 0:02:47]} 11. Nxc6 {[%clk 0:02:19]}  bxc6 {[%clk 0:02:46]} 12. Bd3 {[%clk 0:02:15]}  Qa5 {[%clk 0:02:43]} 13. Qd2 {[%clk 0:02:13]}  Kh8 {[%clk 0:02:35]} 14. b4 {[%clk 0:01:54]}  Qxb4 {[%clk 0:02:27]} 15. Bxa7 {[%clk 0:01:52]}  c5 {[%clk 0:02:23]} 16. Rab1 {[%clk 0:01:43]}  Qd4 {[%clk 0:02:17]} 17. a5 {[%clk 0:01:08]}  Bd8 {[%clk 0:02:17]} 18. Ne2 {[%clk 0:00:54]}  Qa4 {[%clk 0:01:37]} 19. Ra1 {[%clk 0:00:51]}  Qc6 {[%clk 0:01:36]} 20. Nc3 {[%clk 0:00:40]}  c4 {[%clk 0:01:31]} 21. Bf1 {[%clk 0:00:40]}  Ra8 {[%clk 0:01:30]} 22. Bd4 {[%clk 0:00:20]}  e5 {[%clk 0:01:22]} 23. Bb6 {[%clk 0:00:11]}  Bxb6 {[%clk 0:01:21]} 24. axb6 {[%clk 0:00:12]}  Qxb6 {[%clk 0:01:21]} 25. Bxc4 {[%clk 0:00:12]}  Rac8 {[%clk 0:00:44]} 26. Bb3 {[%clk 0:00:07]}  Be6 {[%clk 0:00:32]} 27. Rab1 {[%clk 0:00:04]}  Bxb3 {[%clk 0:00:29]} 28. cxb3 {[%clk 0:00:05]}  Qb4 {[%clk 0:00:21]} 29. Re3 {[%clk 0:00:05]}  Rc6 {[%clk 0:00:17]} 30. Qe1 {[%clk 0:00:03]}  Rb8 {[%clk 0:00:14]} 31. h3 {[%clk 0:00:02]}  g6 {[%clk 0:00:13]} 32. Kh2 {[%clk 0:00:03]}  Kg7 {[%clk 0:00:13]} 33. Rf3 {[%clk 0:00:02]}  Rcb6 {[%clk 0:00:13]} 34. Qe3 {[%clk 0:00:02]}  Qd4 {[%clk 0:00:11]} 35. Qg5 {[%clk 0:00:02]}  Nxe4 {[%clk 0:00:09]} 36. Nxe4 {[%clk 0:00:03]}  Qxe4 {[%clk 0:00:10]} 37. Qf6+ {[%clk 0:00:04]}  Kh6 {[%clk 0:00:08]} 38. Qxf7 {[%clk 0:00:03]}  Qh4 {[%clk 0:00:04]} 39. b4 {[%clk 0:00:02]}  Rxb4 {[%clk 0:00:03]} 40. Rxb4 {[%clk 0:00:02]}  Rxb4 {[%clk 0:00:04]} 41. Qf8+ {[%clk 0:00:03]}  Kh5 {[%clk 0:00:00]} 42. Qxd6 {[%clk 0:00:02]} 1-0